fUST/lending_fUST_20250810
["ID","MTS","AMOUNT","RATE_DAILY","PERIOD"]
[378315581,1754818236597,-460.0,0.00021673,2]
[378315582,1754818236607,-460.0,0.00021673,2]
[378315583,1754818236616,-460.0,0.00021673,2]
[378315584,1754818236625,-460.0,0.00021673,2]
[378315585,1754818236634,-460.0,0.00021673,2]
[378315586,1754818236643,-1784.09,0.00021673,2]
[378315587,1754818236652,-460.0,0.00021673,2]
[378315588,1754818236662,-157.12,0.00021673,2]
[378315589,1754818236671,-460.0,0.00021673,2]
[378315590,1754818236680,-579.88797104,0.00021673,2]
[378315591,1754818236689,-460.0,0.00021673,2]
[378315592,1754818236698,-170.73776934,0.00021673,2]
[378315593,1754818236707,-460.0,0.00021674,2]
[378315594,1754818236717,-460.0,0.00021674,2]
[378315595,1754818236726,-460.0,0.00021674,2]
[378315596,1754818236736,-460.0,0.00021674,2]
[378315597,1754818236745,-460.0,0.00021674,2]
[378315598,1754818236755,-608.57,0.00021674,2]
[378315599,1754818236764,-460.0,0.00021674,2]
[378315600,1754818236773,-460.0,0.00021674,2]
[378315601,1754818236782,-460.0,0.00021674,2]
[378315602,1754818236792,-460.0,0.00021674,2]
[378315603,1754818236801,-1469.78,0.00021674,2]
[378315604,1754818236811,-460.0,0.00021674,2]
[378315605,1754818236820,-460.0,0.00021674,2]
[378315606,1754818236829,-460.0,0.00021674,2]
[378315607,1754818236839,-391.7,0.00021674,2]
[378315608,1754818236848,-460.0,0.00021675,2]
[378315609,1754818236858,-460.0,0.00021675,2]
[378315610,1754818236867,-460.0,0.00021675,2]
[378315611,1754818236877,-460.0,0.00021675,2]
[378315612,1754818236887,-460.0,0.00021675,2]
[378315613,1754818236896,-488.58,0.00021675,2]
[378315614,1754818236906,-460.0,0.00021675,2]
[378315615,1754818236915,-460.0,0.00021675,2]
[378315616,1754818236925,-460.0,0.00021675,2]
[378315617,1754818236935,-460.0,0.00021675,2]
[378315618,1754818236944,-500.0,0.00021917,2]
[378315619,1754818236958,-4772.92,0.00021917,2]
[378315620,1754818236968,-1000.0,0.00021921,2]
[378315621,1754818236978,-460.0,0.00021946,2]
[378315622,1754818236987,-460.0,0.00021946,2]
[378315623,1754818236998,-583.35,0.00021947,2]
[378315624,1754818237007,-236.2,0.00021947,2]
[378315625,1754818237016,-460.0,0.00021947,2]
[378315626,1754818237027,-460.0,0.00021947,2]
[378315627,1754818237037,-460.0,0.00021947,2]
[378315628,1754818237047,-284.67,0.00021947,2]
[378315629,1754818237056,-1784.09,0.00021947,2]
[378315630,1754818237066,-460.0,0.00021947,2]
[378315631,1754818237076,-476.1,0.00021947,2]
[378315632,1754818237085,-460.0,0.00021947,2]
[378315633,1754818237095,-460.0,0.00021948,2]
[378315634,1754818237104,-460.0,0.00021948,2]
[378315635,1754818237114,-460.0,0.00021948,2]
[378315636,1754818237123,-460.0,0.00021948,2]
[378315637,1754818237133,-220.99,0.00021948,2]
[378315638,1754818237142,-460.0,0.00021948,2]
[378315639,1754818237151,-394.86,0.00021948,2]
[378315640,1754818237160,-1469.78,0.00021948,2]
[378315641,1754818237170,-460.0,0.00021948,2]
[378315642,1754818237179,-460.0,0.00021948,2]
[378315643,1754818237188,-460.0,0.00021948,2]
[378315644,1754818237197,-486.5,0.00021949,2]
[378315645,1754818237207,-460.0,0.00021949,2]
[378315646,1754818237217,-488.58,0.00021949,2]
[378315647,1754818237226,-460.0,0.00021949,2]
[378315648,1754818237236,-460.0,0.00021949,2]
[378315649,1754818237252,-460.0,0.00021949,2]
[378315650,1754818237261,-192.0,0.00022,2]
[378315651,1754818237270,-737.56,0.00022,2]
[378315652,1754818237279,-200.0,0.00022024,2]
[378315653,1754818237288,-200.0,0.0002218,15]
[378315654,1754818237298,-300.0,0.0002218,15]
[378315655,1754818237307,-241.56,0.0002222,2]
[378315656,1754818237318,-460.0,0.00022221,2]
[378315657,1754818237327,-460.0,0.00022221,2]
[378315658,1754818237336,-460.0,0.00022221,2]
[378315659,1754818237346,-1784.09,0.00022221,2]
[378315660,1754818237356,-460.0,0.00022221,2]
[378315661,1754818237366,-460.0,0.00022221,2]
[378315662,1754818237376,-233.74,0.00022222,2]
[378315663,1754818237385,-455.69,0.00022222,2]
[378315664,1754818237394,-454.81,0.00022222,2]
[378315665,1754818237404,-460.0,0.00022222,2]
[378315666,1754818237414,-460.0,0.00022222,2]
[378315667,1754818237423,-1469.78,0.00022222,2]
[378315668,1754818237432,-588.07,0.00022222,2]
[378315669,1754818237450,-383.61,0.00022222,2]
[378315670,1754818237459,-460.0,0.00022222,2]
[378315671,1754818237468,-460.0,0.00022223,2]
[378315672,1754818237477,-488.58,0.00022223,2]
[378315673,1754818237487,-460.0,0.00022223,2]
[378315674,1754818237497,-460.0,0.00022223,2]
[378315675,1754818237506,-460.0,0.00022223,2]
[378315676,1754818237515,-160.0,0.00022365,2]
[378315677,1754818237525,-160.0,0.00022365,2]
[378315678,1754818237534,-12668.57659669,0.00022368,2]
[378315679,1754818237543,-160.0,0.00022368,2]
[378315680,1754818237552,-527.86640923,0.00022368,2]
[378315681,1754818237561,-215.44987349,0.00022368,2]
[378315682,1754818237571,-160.0,0.00022368,2]
[378315683,1754818237580,-843.0869304,0.00022368,2]
[378315684,1754818237589,-216.64838636,0.00022368,2]
[378315685,1754818237598,-461.62346162,0.00022368,2]
[378315686,1754818237607,-160.0,0.00022368,2]
[378315687,1754818237617,-231.96268195,0.00022368,2]
[378315688,1754818237737,-160.0,0.00022372,2]
[378315689,1754818237747,-1000.0,0.00022397,2]
[378315690,1754818237757,-1500.0,0.00022468,2]
[378315691,1754818237767,-460.0,0.00022495,2]
[378315692,1754818237777,-460.0,0.00022495,2]
[378315693,1754818237788,-379.36,0.00022495,2]
[378315694,1754818237798,-1784.09,0.00022495,2]
[378315695,1754818237808,-460.0,0.00022495,2]
[378315696,1754818237818,-460.0,0.00022495,2]
[378315697,1754818237828,-460.0,0.00022496,2]
[378315698,1754818237838,-460.0,0.00022496,2]
[378315699,1754818237848,-1469.78,0.00022496,2]
[378315700,1754818237858,-460.0,0.00022496,2]
[378315701,1754818237868,-460.0,0.00022497,2]
[378315702,1754818237877,-488.58,0.00022497,2]
[378315703,1754818237887,-460.0,0.00022497,2]
[378315704,1754818237905,-460.0,0.00022497,2]
[378315705,1754818237919,-460.0,0.00022497,2]
[378315706,1754818237930,-460.0,0.00022769,2]
[378315707,1754818237941,-460.0,0.00022769,2]
[378315708,1754818237952,-1784.09,0.00022769,2]
[378315709,1754818237968,-460.0,0.00022769,2]
[378315710,1754818237978,-460.0,0.00022769,2]
[378315711,1754818237989,-460.0,0.0002277,2]
[378315712,1754818238000,-1469.78,0.0002277,2]
[378315713,1754818238011,-460.0,0.0002277,2]
[378315714,1754818238021,-460.0,0.00022771,2]
[378315716,1754818238032,-488.58,0.00022771,2]
[378315718,1754818238043,-460.0,0.00022771,2]
[378315719,1754818238054,-460.0,0.00022771,2]
[378315720,1754818238065,-460.0,0.00022771,2]
[378315721,1754818238076,-420.0,0.00022974,2]
[378315722,1754818238087,-160.0,0.00023,2]
[378315723,1754818238097,-1000.0,0.00023016,2]
[378315724,1754818238107,-460.0,0.00023043,2]
[378315725,1754818238118,-460.0,0.00023043,2]
[378315726,1754818238127,-1784.09,0.00023043,2]
[378315727,1754818238138,-460.0,0.00023043,2]
[378315728,1754818238148,-460.0,0.00023043,2]
[378315729,1754818238158,-460.0,0.00023044,2]
[378315730,1754818238167,-1469.78,0.00023044,2]
[378315731,1754818238177,-460.0,0.00023044,2]
[378315732,1754818238186,-460.0,0.00023045,2]
[378315733,1754818238196,-488.58,0.00023045,2]
[378315735,1754818238206,-460.0,0.00023045,2]
[378315737,1754818238216,-460.0,0.00023045,2]
[378315739,1754818238226,-456.83,0.00023045,2]
[378315740,1754818238236,-480.0,0.00023083,2]
[378315741,1754818238246,-200.0,0.000231,6]
[378315743,1754818238256,-737.56,0.00023178,2]
[378315745,1754818238266,-460.0,0.00023317,2]
[378315747,1754818238275,-460.0,0.00023317,2]
[378315748,1754818238285,-1784.09,0.00023317,2]
[378315749,1754818238295,-460.0,0.00023317,2]
[378315750,1754818238304,-348.37,0.00023317,2]
[378315752,1754818238314,-460.0,0.00023318,2]
[378315754,1754818238323,-1469.78,0.00023318,2]
[378315756,1754818238333,-460.0,0.00023318,2]
[378315758,1754818238343,-460.0,0.00023319,2]
[378315759,1754818238352,-488.58,0.00023319,2]
[378315760,1754818238364,-460.0,0.00023319,2]
[378315761,1754818238379,-460.0,0.00023319,2]
[378315763,1754818238388,-1940.96787557,0.00023409,2]
[378315764,1754818238398,-460.0,0.00023591,2]
[378315765,1754818238408,-460.0,0.00023591,2]
[378315766,1754818238418,-1784.09,0.00023591,2]
[378315768,1754818238428,-460.0,0.00023591,2]
[378315770,1754818238439,-460.0,0.00023592,2]
[378315772,1754818238449,-1469.78,0.00023592,2]
[378315774,1754818238459,-460.0,0.00023592,2]
[378315776,1754818238469,-460.0,0.00023593,2]
[378315778,1754818238479,-488.58,0.00023593,2]
[378315780,1754818238488,-460.0,0.00023593,2]
[378315781,1754818238498,-460.0,0.00023593,2]
[378315782,1754818238508,-460.0,0.00023865,2]
[378315783,1754818238517,-460.0,0.00023865,2]
[378315784,1754818238527,-1784.09,0.00023865,2]
[378315785,1754818238537,-494.66805067,0.00023865,2]
[378315786,1754818238546,-460.0,0.00023866,2]
[378315787,1754818238556,-1469.78,0.00023866,2]
[378315788,1754818238565,-460.0,0.00023866,2]
[378315789,1754818238574,-460.0,0.00023867,2]
[378315790,1754818238584,-488.58,0.00023867,2]
[378315791,1754818238594,-460.0,0.00023867,2]
[378315792,1754818238603,-166.19,0.00023867,2]
[378315793,1754818238616,-37227.98736899,0.0002399,2]
[378315794,1754818238625,-500.0,0.0002405,2]
[378315795,1754818238636,-500.0,0.0002405,2]
[378315796,1754818238645,-460.0,0.00024139,2]
[378315797,1754818238655,-460.0,0.00024139,2]
[378315798,1754818238665,-1784.09,0.00024139,2]
[378315799,1754818238674,-460.0,0.0002414,2]
[378315800,1754818238684,-1469.78,0.0002414,2]
[378315801,1754818238693,-460.0,0.0002414,2]
[378315802,1754818238703,-460.0,0.00024141,2]
[378315803,1754818238712,-488.58,0.00024141,2]
[378315804,1754818238722,-460.0,0.00024141,2]
[378315805,1754818238731,-971.0,0.00024211,2]
[378315806,1754818238741,-636.0,0.00024211,2]
[378315807,1754818238750,-2150.0,0.00024211,2]
[378315808,1754818238759,-200.0,0.00024343,15]
[378315809,1754818238769,-200.0,0.00024343,15]
[378315810,1754818238778,-300.0,0.00024343,15]
[378315811,1754818238789,-737.56,0.00024356,2]
[378315812,1754818238798,-460.0,0.00024413,2]
[378315813,1754818238808,-460.0,0.00024413,2]
[378315814,1754818238817,-1784.09,0.00024413,2]
[378315815,1754818238826,-460.0,0.00024414,2]
[378315816,1754818238836,-1469.78,0.00024414,2]
[378315817,1754818238845,-460.0,0.00024414,2]
[378315818,1754818238854,-460.0,0.00024415,2]
[378315819,1754818238865,-488.58,0.00024415,2]
[378315820,1754818238875,-460.0,0.00024415,2]
[378315821,1754818238884,-800.0,0.00024551,2]
[378315822,1754818238893,-505.58750442,0.00024598,2]
[378315823,1754818238903,-4432.72698273,0.00024657,4]
[378315824,1754818239015,-500.0,0.00021399,2]
[378315825,1754818239025,-340.19301727,0.00024657,4]
[378315826,1754818239036,-473.01828656,0.00024658,2]
[378315827,1754818239045,-151.0,0.00024658,2]
[378315828,1754818239055,-200.0,0.0002467,11]
[378315829,1754818239064,-460.0,0.00024687,2]
[378315830,1754818239074,-460.0,0.00024687,2]
[378315831,1754818239084,-1784.09,0.00024687,2]
[378315832,1754818239094,-583.51050421,0.00024688,2]
[378315833,1754818239103,-1469.78,0.00024688,2]
[378315834,1754818239114,-460.0,0.00024688,2]
[378315835,1754818239124,-460.0,0.00024689,2]
[378315836,1754818239133,-488.58,0.00024689,2]
[378315837,1754818239143,-379.09,0.00024689,2]
[378315838,1754818239152,-171.98917978,0.00024823,2]
[378315839,1754818239161,-500.0,0.00024873,2]
[378315840,1754818239171,-500.0,0.00024873,2]
[378315841,1754818239180,-173.8510564,0.000249,2]
[378315842,1754818239189,-145512.66329652,0.000249,2]
[378315843,1754818239392,-346.16352336,0.00021025,2]
[378315847,1754818240792,-607.091838,0.00021025,2]
[378315859,1754818243657,1747.30655628,0.000199,2]
[378315879,1754818247062,-1116.17464916,0.00021025,2]
[378315880,1754818247071,-422.87,0.00021389,10]
[378315881,1754818247081,-500.0,0.00021399,2]
[378315882,1754818247090,-500.0,0.00021399,2]
[378315883,1754818247099,-500.0,0.00021399,2]
[378315884,1754818247109,-500.0,0.00021399,2]
[378315885,1754818247119,-1747.30655628,0.00021655,2]
[378315886,1754818247128,-1747.30655628,0.00023409,2]
[378315887,1754818247138,-352.39,0.0002489,10]
[378315888,1754818247149,-46485.11979148,0.000249,2]
[378315889,1754818247161,-367.67397219,0.000249,2]
[378315890,1754818247172,-35004.77793311,0.000249,2]
[378315891,1754818247183,-302.67550701,0.000249,2]
[378315892,1754818247194,-1849.65755344,0.000249,2]
[378315893,1754818448138,1573.03182768,0.000199,2]
[378315894,1754818528191,368.1493305,0.00020261,2]
[378315895,1754818634399,1902.33123269,0.000199,2]
[378315897,1754818808762,911.61697041,0.000199,2]
[378315898,1754818808794,1270.86364068,0.000199,2]
[378315901,1754818871659,198.499902,0.00013699,2]
[378315902,1754818871861,198.499902,0.00020187,2]
[378315904,1754818959713,1000.0,0.0002005,2]
[378315906,1754819002220,2110.07694007,0.000199,2]
[378315907,1754819002831,2933.51212777,0.00031407,30]
[378315909,1754819098170,2500.0,0.00031407,120]
[378315910,1754819109502,2500.0,0.00031407,90]
[378315924,1754819129030,2500.0,0.00031407,120]
[378315929,1754819163569,2500.0,0.00031407,90]
[378315932,1754819201946,2851.05764281,0.000199,2]
[378315934,1754819207632,233.0,0.0001945,2]
[378315935,1754819208354,19138.00197244,0.0002005,2]
[378315936,1754819208378,5761.99802756,0.0002005,2]
[378315939,1754819283971,270.833526,0.00027397,120]
[378315949,1754819422567,3070.73329595,0.000199,2]
[378315979,1754819432013,-151.0,0.00021013,2]
[378315980,1754819432023,-151.0,0.00021013,2]
[378315981,1754819432032,-151.0,0.00021013,2]
[378315982,1754819432042,-151.0,0.00021013,2]
[378315984,1754819432051,-151.0,0.00021013,2]
[378315985,1754819432061,-151.0,0.00021013,2]
[378315987,1754819432070,-250.0,0.00021013,2]
[378315989,1754819432079,-250.0,0.00021013,2]
[378315990,1754819432088,-293.66,0.00021016,10]
[378315991,1754819432098,-244.72,0.00021016,10]
[378315992,1754819432108,-203.93,0.00021016,10]
[378315993,1754819432117,-762.74173588,0.00021024,2]
[378315994,1754819432127,-300.0,0.00021024,2]
[378315995,1754819432136,-460.0,0.00021025,2]
[378315996,1754819432145,-460.0,0.00021025,2]
[378315997,1754819432155,-460.0,0.00021025,2]
[378315998,1754819432164,-460.0,0.00021025,2]
[378315999,1754819432173,-460.0,0.00021025,2]
[378316001,1754819432183,-460.0,0.00021025,2]
[378316002,1754819432192,-460.0,0.00021025,2]
[378316003,1754819432201,-134.94420996,0.00021025,2]
[378316004,1754819432212,-59.69581788,0.00021025,2]
[378316005,1754819432222,-460.0,0.00021025,2]
[378316006,1754819432231,-288.17618407,0.00021025,2]
[378316007,1754819432240,-460.0,0.00021025,2]
[378316008,1754819432249,-743.37,0.00021025,2]
[378316009,1754819432258,-460.0,0.00021025,2]
[378316010,1754819432267,-460.0,0.00021025,2]
[378316011,1754819432277,-187.06509489,0.00021025,2]
[378316012,1754819432286,-460.0,0.00021025,2]
[378316013,1754819432295,-460.0,0.00021025,2]
[378316014,1754819432304,-460.0,0.00021025,2]
[378316015,1754819432315,-286.29517997,0.00021025,2]
[378316016,1754819432324,-500.0,0.00021025,2]
[378316017,1754819432333,-215.89253319,0.00021025,2]
[378316048,1754819437717,-169.94,0.00021016,10]
[378316050,1754819437729,-284.10746681,0.00021025,2]
[378316052,1754819437739,-500.0,0.00021025,2]
[378316054,1754819437749,-184.01916418,0.00021025,2]
[378316091,1754819445930,-268.38624361,0.00021025,2]
[378316092,1754819445984,-108.86933396,0.00021025,2]
[378316093,1754819445994,-500.0,0.00021025,2]
[378316094,1754819446003,-500.0,0.00021025,2]
[378316095,1754819446012,-500.0,0.00021025,2]
[378316096,1754819446021,-500.0,0.00021025,2]
[378316097,1754819446030,-187.32096076,0.00021025,2]
[378316098,1754819446039,-421.46756618,0.00021025,2]
[378316099,1754819446048,-468.29729576,0.00021025,2]
[378316100,1754819446057,-500.0,0.00021025,2]
[378316101,1754819446066,-175.41450308,0.00021025,2]
[378316102,1754819446076,-355.84780335,0.00021025,2]
[378316103,1754819446084,-9671.48273572,0.00021026,2]
[378316105,1754819455092,212.661135,0.0002073,2]
[378316107,1754819463190,191.490888,0.00020757,2]
[378316108,1754819615132,169.748389,0.00020211,2]
[378316109,1754819631060,3028.45501691,0.000199,2]
[378316111,1754819759621,7564.91324758,0.00020926,2]
[378316112,1754819759644,20000.0,0.00020926,2]
[378316113,1754819759666,20000.0,0.00020926,2]
[378316114,1754819759689,20000.0,0.00020926,2]
[378316115,1754819759711,20000.0,0.00020926,2]
[378316116,1754819759732,20000.0,0.00020926,2]
[378316117,1754819759755,20000.0,0.00020926,2]
[378316118,1754819759778,20000.0,0.00020926,2]
[378316119,1754819759801,20000.0,0.00020926,2]
[378316120,1754819759822,20000.0,0.00020926,2]
[378316121,1754819759844,20000.0,0.00020926,2]
[378316122,1754819759866,20000.0,0.00020926,2]
[378316123,1754819759888,2763.6040167,0.00020926,2]
[378316124,1754819768671,5000.0,0.00021,2]
[378316125,1754819773232,667.39901886,0.00020925,2]
[378316126,1754819776660,5000.0,0.00021,2]
[378316127,1754819784979,221.0051492,0.00020925,2]
[378316128,1754819785076,5000.0,0.00021,2]
[378316129,1754819793165,1347.99181524,0.00021,2]
[378316130,1754819793186,3652.00818476,0.00021,2]
[378316131,1754819801814,5000.0,0.00021,2]
[378316132,1754819809926,5000.0,0.00021,2]
[378316134,1754819818304,5000.0,0.00021,2]
[378316135,1754819826272,1347.99181524,0.00021,2]
[378316136,1754819826294,3652.00818476,0.00021,2]
[378316137,1754819834495,5000.0,0.00021,2]
[378316138,1754819838548,3443.80511841,0.000199,2]
[378316139,1754819842982,1373.84186657,0.00021,2]
[378316140,1754819851275,5000.0,0.00021,2]
[378316141,1754819869552,441.93622293,0.00018925,2]
[378316142,1754819869617,1088.40860733,0.00021,2]
[378316143,1754819869647,3911.59139267,0.00021,2]
[378316144,1754819884868,5000.0,0.00021,2]
[378316145,1754819900338,5000.0,0.00021,2]
[378316146,1754819915598,5000.0,0.00021,2]
[378316147,1754819932094,5000.0,0.00021,2]
[378316148,1754819943062,1029.13136639,0.00020394,2]
[378316149,1754819943613,514.5656832,0.0002049,2]
[378316150,1754819948010,3456.30295041,0.00021,2]
[378316152,1754820027588,229.965021,0.00013699,2]
[378316153,1754820027815,229.965021,0.00020187,2]
[378316154,1754820037519,1004.75,0.00020501,2]
[378316155,1754820042885,3329.01161455,0.000199,2]
[378316157,1754820170707,294.62414862,0.000189,2]
[378316159,1754820228521,14911.68419483,0.00020036,2]
[378316160,1754820228543,9988.31580517,0.00020036,2]
[378316163,1754820244935,198.75373,0.00020166,2]
[378316164,1754820245284,408.075987,0.00020393,2]
[378316165,1754820245643,822.54557446,0.00020393,2]
[378316167,1754820253505,3414.54427173,0.000199,2]
[378316169,1754820268879,1801.0,0.00030137,120]
[378316172,1754820335567,5000.0,0.00020501,2]
[378316173,1754820428679,167.76463164,0.00020024,2]
[378316174,1754820428700,20000.0,0.00020024,2]
[378316175,1754820428723,8680.94760476,0.00020024,2]
[378316178,1754820468852,3297.17281948,0.000199,2]
[378316179,1754820471817,196.41609908,0.000189,2]
[378316180,1754820473258,204.34778,0.00020024,2]
[378316181,1754820501550,203.125144,0.00027397,120]
[378316184,1754820546899,554.21031638,0.00020392,2]
[378316185,1754820547906,277.10515819,0.00020393,2]
[378316219,1754820636566,-5000.0,0.00020716,2]
[378316221,1754820636576,-849.74,0.00021015,10]
[378316223,1754820636586,-300.0,0.00021022,2]
[378316224,1754820636595,-1200.0,0.00021022,2]
[378316225,1754820636605,-139.32813433,0.00021023,2]
[378316227,1754820636620,-320.67186567,0.00021023,2]
[378316229,1754820636630,-460.0,0.00021023,2]
[378316231,1754820636644,-460.0,0.00021023,2]
[378316232,1754820636663,-460.0,0.00021023,2]
[378316233,1754820636673,-460.0,0.00021023,2]
[378316234,1754820636683,-460.0,0.00021023,2]
[378316235,1754820636694,-460.0,0.00021023,2]
[378316237,1754820636703,-653.91,0.00021023,2]
[378316244,1754820636712,-460.0,0.00021023,2]
[378316245,1754820636871,-39679.55792031,0.00021023,2]
[378316246,1754820636882,-999.40035978,0.00021024,2]
[378316247,1754820636891,-460.0,0.00021024,2]
[378316248,1754820636902,-349.73989569,0.00021024,2]
[378316249,1754820636912,-460.0,0.00021024,2]
[378316250,1754820636922,-460.0,0.00021024,2]
[378316251,1754820636932,-460.0,0.00021024,2]
[378316252,1754820636942,-460.0,0.00021024,2]
[378316253,1754820636954,-460.0,0.00021024,2]
[378316254,1754820636971,-460.0,0.00021024,2]
[378316255,1754820636985,-460.0,0.00021024,2]
[378316256,1754820636995,-460.0,0.00021024,2]
[378316257,1754820637006,-460.0,0.00021024,2]
[378316258,1754820637016,-460.0,0.00021024,2]
[378316259,1754820637028,-460.0,0.00021024,2]
[378316260,1754820637038,-460.0,0.00021024,2]
[378316261,1754820637048,-460.0,0.00021024,2]
[378316262,1754820637057,-460.0,0.00021024,2]
[378316263,1754820637067,-464.22492471,0.00021024,2]
[378316264,1754820637077,-460.0,0.00021024,2]
[378316265,1754820637087,-460.0,0.00021024,2]
[378316266,1754820637096,-460.0,0.00021024,2]
[378316267,1754820637108,-460.0,0.00021024,2]
[378316268,1754820637118,-428.8,0.00021024,2]
[378316269,1754820637128,-460.0,0.00021024,2]
[378316270,1754820637137,-460.0,0.00021024,2]
[378316271,1754820637146,-460.0,0.00021024,2]
[378316272,1754820637156,-460.0,0.00021024,2]
[378316273,1754820637165,-460.0,0.00021024,2]
[378316274,1754820637174,-460.0,0.00021024,2]
[378316275,1754820637183,-460.0,0.00021024,2]
[378316276,1754820637193,-460.0,0.00021024,2]
[378316277,1754820637202,-460.0,0.00021024,2]
[378316278,1754820637211,-460.0,0.00021024,2]
[378316279,1754820637221,-460.0,0.00021024,2]
[378316280,1754820637230,-460.0,0.00021024,2]
[378316281,1754820637239,-94.04416635,0.00021024,2]
[378316289,1754820637895,-374.62681776,0.00021024,2]
[378316290,1754820637905,-352.76817646,0.00021024,2]
[378316292,1754820637915,-460.0,0.00021024,2]
[378316293,1754820637924,-34.92700186,0.00021025,2]
[378316294,1754820637959,-421.51616336,0.00021025,2]
[378316295,1754820637969,-460.0,0.00021025,2]
[378316296,1754820637979,-460.0,0.00021025,2]
[378316297,1754820637989,-392.95415245,0.00021025,2]
[378316298,1754820637999,-460.0,0.00021025,2]
[378316299,1754820638008,-236.62739308,0.00021025,2]
[378316300,1754820638021,-223.37260692,0.00021025,2]
[378316301,1754820638032,-460.0,0.00021025,2]
[378316303,1754820638042,-460.0,0.00021025,2]
[378316305,1754820638052,-460.0,0.00021025,2]
[378316306,1754820638062,-460.0,0.00021025,2]
[378316308,1754820638072,-152.73558213,0.00021025,2]
[378316310,1754820638082,-481.88317048,0.00021025,2]
[378316312,1754820638092,-463.28677013,0.00021025,2]
[378316313,1754820638101,-460.0,0.00021025,2]
[378316314,1754820638110,-460.0,0.00021025,2]
[378316315,1754820638119,-460.0,0.00021025,2]
[378316316,1754820638128,-460.0,0.00021025,2]
[378316317,1754820638137,-332.39478158,0.00021025,2]
[378316318,1754820638146,-460.0,0.00021025,2]
[378316319,1754820638155,-576.43038979,0.00021025,2]
[378316320,1754820638164,-460.0,0.00021025,2]
[378316321,1754820638173,-224.03876033,0.00021025,2]
[378316322,1754820638186,-235.96123967,0.00021025,2]
[378316323,1754820638195,-500.0,0.00021025,2]
[378316324,1754820638205,-485.54774861,0.00021025,2]
[378316325,1754820638215,-460.0,0.00021025,2]
[378316326,1754820638224,-460.0,0.00021025,2]
[378316327,1754820638234,-193.15165786,0.00021025,2]
[378316328,1754820638244,-460.0,0.00021025,2]
[378316329,1754820638254,-460.0,0.00021025,2]
[378316330,1754820638264,-460.0,0.00021025,2]
[378316331,1754820638274,-460.0,0.00021025,2]
[378316332,1754820638285,-460.0,0.00021025,2]
[378316333,1754820638303,-460.0,0.00021025,2]
[378316334,1754820638316,-460.0,0.00021025,2]
[378316335,1754820638327,-460.0,0.00021025,2]
[378316336,1754820638337,-460.0,0.00021025,2]
[378316337,1754820638347,-460.0,0.00021025,2]
[378316338,1754820638357,-460.0,0.00021025,2]
[378316339,1754820638367,-460.0,0.00021025,2]
[378316340,1754820638376,-460.0,0.00021025,2]
[378316341,1754820638386,-460.0,0.00021025,2]
[378316342,1754820638396,-460.0,0.00021025,2]
[378316343,1754820638406,-460.0,0.00021025,2]
[378316344,1754820638416,-460.0,0.00021025,2]
[378316345,1754820638426,-460.0,0.00021025,2]
[378316346,1754820638436,-460.0,0.00021025,2]
[378316347,1754820638446,-460.0,0.00021025,2]